[Event "Czech Open Rapid G1 2024"]
[Site "Pardubice"]
[Date "2024.07.18"]
[Round "7.13"]
[White "Konopka, Michal"]
[Black "Vrana, Frantisek"]
[Result "1/2-1/2"]
[Annotator "RC"]
[ECO "A88"]
[WhiteElo "2326"]
[BlackElo "2147"]
[PlyCount "89"]
[EventDate "2024.07.16"]
[EventType "swiss"]
[EventCountry "CZE"]
[SourceTitle "playchess.com"]
[Source "ChessBase"]
[SourceQuality "1"]
[TimeControl "1200+10"]

1. Nf3 {[%emt 0:00:05]} f5 {[%emt 0:00:19]} 2. c4 {[%emt 0:00:08]} Nf6 {[%emt 0:00:03]} 3. Nc3 {[%emt 0:00:02]} g6 {[%emt 0:00:02]} 4. b3 {[%emt 0:00:33]} Bg7 {[%emt 0:00:02]} 5. Bb2 {[%emt 0:00:01]} O-O {[%emt 0:00:31]} 6. g3 {[%emt 0:00:11]} d6 {[%emt 0:00:16]} 7. d4 {[%emt 0:00:09]} c6 {[%emt 0:00:18]} 8. Bg2 {[%emt 0:00:09]} Qe8 {[%emt 0:00:21]} 9. d5 {[%emt 0:02:09]} Na6 {[%emt 0:00:50]} 10. O-O {[%emt 0:00:16]} Bd7 {[%emt 0:00:56]} 11. Nd4 {[%emt 0:00:37]} Nc7 {[%emt 0:00:26]} 12. Qd2 {[%emt 0:01:46]} c5 {[%emt 0:00:51]} 13. Ne6 {[%emt 0:04:16]} Nxe6 {[%emt 0:00:54]} 14. dxe6 {[%emt 0:00:02]} Bxe6 {[%emt 0:00:03]} 15. Bxb7 {[%emt 0:00:04]} Rb8 {[%emt 0:00:02]} 16. Bg2 {[%emt 0:00:07]} Qf7 {[%emt 0:01:20]} 17. Rad1 {[%emt 0:01:04]} h6 {[%emt 0:04:50]} 18. f4 {[%emt 0:00:16]} Kh7 {[%emt 0:00:22]} 19. Nd5 {[%emt 0:00:47]} Nxd5 {[%emt 0:00:23]} 20. cxd5 {[%emt 0:00:44]} Bd7 {[%emt 0:00:18]} 21. Bc3 {[%emt 0:00:45]} Bxc3 {[%emt 0:00:34]} 22. Qxc3 {[%emt 0:00:02]} Qf6 {[%emt 0:00:16]} 23. Qxf6 {[%emt 0:00:16]} exf6 {[%emt 0:00:13]} 24. e4 {[%emt 0:00:16]} Rfe8 {[%emt 0:00:37]} 25. Rfe1 {[%emt 0:00:13]} fxe4 {[%emt 0:00:31]} 26. Bxe4 {[%emt 0:00:22]} Kg7 {[%emt 0:00:45]} 27. Kf2 {[%emt 0:00:16]} Re7 {[%emt 0:00:24]} 28. Bd3 {[%emt 0:00:25]} Rbe8 {[%emt 0:00:03]} 29. Rxe7+ {[%emt 0:00:14]} Rxe7 {[%emt 0:00:02]} 30. Rc1 {[%emt 0:01:22]} a5 {[%emt 0:00:26]} 31. h4 {[%emt 0:00:57]} Be8 {[%emt 0:01:46]} 32. Re1 {[%emt 0:00:37]} Rxe1 {[%emt 0:00:24]} 33. Kxe1 {[%emt 0:00:01]} g5 {[%emt 0:00:12]} 34. Kd2 {[%emt 0:01:00]} Kf7 {[%emt 0:02:29]} 35. Kc3 {[%emt 0:00:31]} Bd7 {[%emt 0:00:05]} 36. a3 {[%emt 0:00:42]} Ke7 {[%emt 0:00:12]} 37. b4 {[%emt 0:00:21]} axb4+ {[%emt 0:00:04]} 38. axb4 {[%emt 0:00:02]} cxb4+ {[%emt 0:00:01]} 39. Kxb4 {[%emt 0:00:02]} gxh4 {[%emt 0:00:16]} 40. gxh4 {[%emt 0:00:02]} Bg4 {[%emt 0:00:03]} 41. Kb5 {[%emt 0:00:23]} Bf3 {[%emt 0:00:03]} 42. Kc6 {[%emt 0:00:11]} Bg4 {[%emt 0:00:02]} 43. Be4 {[%emt 0:00:18]} Bd7+ {[%emt 0:00:05]} 44. Kc7 {[%emt 0:00:02]} Bg4 {[%emt 0:00:02]} 45. Bd3 {[%emt 0:00:26]} 1/2-1/2

[Event "Czech Open Rapid G1 2024"]
[Site "Pardubice"]
[Date "2024.07.18"]
[Round "7.14"]
[White "Bures, Jaroslav"]
[Black "Berin, Artem"]
[Result "1/2-1/2"]
[Annotator "RC"]
[ECO "C07"]
[WhiteElo "2418"]
[BlackElo "2234"]
[PlyCount "136"]
[EventDate "2024.07.16"]
[EventType "swiss"]
[EventCountry "CZE"]
[SourceTitle "playchess.com"]
[Source "ChessBase"]
[SourceQuality "1"]
[TimeControl "1200+10"]

1. e4 {[%emt 0:00:01]} e6 {[%emt 0:00:02]} 2. d4 {[%emt 0:00:01]} d5 {[%emt 0:00:01]} 3. Nd2 {[%emt 0:00:02]} c5 {[%emt 0:00:01]} 4. Ngf3 {[%emt 0:00:01]} cxd4 {[%emt 0:00:02]} 5. Nxd4 {[%emt 0:00:02]} Nc6 {[%emt 0:00:02]} 6. Bb5 {[%emt 0:00:01]} Bd7 {[%emt 0:00:02]} 7. Nxc6 {[%emt 0:00:02]} bxc6 {[%emt 0:00:02]} 8. Bd3 {[%emt 0:00:01]} Bd6 {[%emt 0:00:03]} 9. Qe2 {[%emt 0:00:02]} e5 {[%emt 0:00:08]} 10. c4 {[%emt 0:00:22]} d4 {[%emt 0:00:10]} 11. c5 {[%emt 0:01:26]} Bxc5 {[%emt 0:00:03]} 12. Nc4 {[%emt 0:00:02]} Qe7 {[%emt 0:00:09]} 13. Qh5 {[%emt 0:03:54]} Bb4+ {[%emt 0:05:18]} 14. Bd2 {[%emt 0:00:33]} Bxd2+ {[%emt 0:00:05]} 15. Kxd2 {[%emt 0:00:01]} Be6 {[%emt 0:04:08]} 16. Qxe5 {[%emt 0:00:08]} Bxc4 {[%emt 0:03:01]} 17. Qxe7+ {[%emt 0:00:04]} Kxe7 {[%emt 0:00:07]} 18. Bxc4 {[%emt 0:00:01]} Nf6 {[%emt 0:00:02]} 19. Rhe1 {[%emt 0:03:32]} Nd7 {[%emt 0:01:52]} 20. e5 {[%emt 0:00:21]} Nb6 {[%emt 0:01:46]} 21. Rac1 {[%emt 0:00:31]} Rab8 {[%emt 0:01:03]} 22. Bb3 {[%emt 0:00:42]} Rhc8 {[%emt 0:00:16]} 23. Rc5 {[%emt 0:00:03]} Nd7 {[%emt 0:00:32]} 24. Ra5 {[%emt 0:00:01]} Rc7 {[%emt 0:00:20]} 25. e6 {[%emt 0:00:08]} fxe6 {[%emt 0:00:16]} 26. Rxe6+ {[%emt 0:00:07]} Kd8 {[%emt 0:00:30]} 27. Rf5 {[%emt 0:03:02]} Rb5 {[%emt 0:01:29]} 28. Rxb5 {[%emt 0:01:25]} cxb5 {[%emt 0:00:02]} 29. Rd6 {[%emt 0:00:05]} Ke7 {[%emt 0:00:01]} 30. Rxd4 {[%emt 0:00:04]} Nc5 {[%emt 0:00:02]} 31. Bc2 {[%emt 0:00:19]} h6 {[%emt 0:00:32]} 32. h4 {[%emt 0:00:54]} Ne6 {[%emt 0:00:09]} 33. Rg4 {[%emt 0:00:48]} Kf6 {[%emt 0:00:19]} 34. h5 {[%emt 0:00:38]} Ke5 {[%emt 0:00:39]} 35. g3 {[%emt 0:01:00]} Rd7+ {[%emt 0:00:16]} 36. Ke3 {[%emt 0:00:08]} Rc7 {[%emt 0:00:20]} 37. f4+ {[%emt 0:00:08]} Kd6 {[%emt 0:00:03]} 38. Bb3 {[%emt 0:00:22]} Nf8 {[%emt 0:00:07]} 39. Kd4 {[%emt 0:00:20]} a5 {[%emt 0:00:14]} 40. f5 {[%emt 0:02:06]} a4 {[%emt 0:00:10]} 41. Bg8 {[%emt 0:00:03]} Re7 {[%emt 0:00:31]} 42. Be6 {[%emt 0:01:51]} Rc7 {[%emt 0:00:27]} 43. Bg8 {[%emt 0:00:15]} Re7 {[%emt 0:00:01]} 44. Kc3 {[%emt 0:00:22]} Kc5 {[%emt 0:00:45]} 45. b4+ {[%emt 0:00:03]} axb3 {[%emt 0:00:02]} 46. Bxb3 {[%emt 0:00:11]} Nd7 {[%emt 0:00:11]} 47. Rg6 {[%emt 0:00:09]} Nf6 {[%emt 0:00:34]} 48. g4 {[%emt 0:00:01]} b4+ {[%emt 0:00:31]} 49. Kd3 {[%emt 0:00:11]} Nd7 {[%emt 0:00:32]} 50. Kc2 {[%emt 0:00:21]} Ne5 {[%emt 0:00:05]} 51. g5 {[%emt 0:01:06]} Nxg6 {[%emt 0:00:11]} 52. hxg6 {[%emt 0:00:14]} hxg5 {[%emt 0:00:12]} 53. f6 {[%emt 0:00:03]} Rc7 {[%emt 0:00:21]} 54. Bf7 {[%emt 0:00:10]} Kd6+ {[%emt 0:00:02]} 55. Kd3 {[%emt 0:00:19]} gxf6 {[%emt 0:00:10]} 56. g7 {[%emt 0:00:02]} Rc8 {[%emt 0:00:01]} 57. g8=Q {[%emt 0:00:03]} Rxg8 {[%emt 0:00:01]} 58. Bxg8 {[%emt 0:00:01]} Ke5 {[%emt 0:00:03]} 59. Kc4 {[%emt 0:00:46]} g4 {[%emt 0:00:01]} 60. Bd5 {[%emt 0:00:02]} f5 {[%emt 0:00:05]} 61. Bb7 {[%emt 0:00:04]} f4 {[%emt 0:00:04]} 62. Kxb4 {[%emt 0:00:03]} f3 {[%emt 0:00:09]} 63. a4 {[%emt 0:00:02]} Kf4 {[%emt 0:00:10]} 64. a5 {[%emt 0:00:01]} g3 {[%emt 0:00:06]} 65. Bxf3 {[%emt 0:00:04]} Kxf3 {[%emt 0:00:03]} 66. a6 {[%emt 0:00:01]} g2 {[%emt 0:00:02]} 67. a7 {[%emt 0:00:01]} g1=Q {[%emt 0:00:02]} 68. a8=Q+ {[%emt 0:00:03]} Kf2 {[%emt 0:00:01]} 1/2-1/2

[Event "Czech Open Rapid G1 2024"]
[Site "Pardubice"]
[Date "2024.07.18"]
[Round "7.15"]
[White "Prokofiev, Valentyn"]
[Black "Garsky, Vladyslav"]
[Result "1-0"]
[Annotator "RC"]
[ECO "D30"]
[WhiteElo "2337"]
[BlackElo "2137"]
[PlyCount "81"]
[EventDate "2024.07.16"]
[EventType "swiss"]
[EventCountry "CZE"]
[SourceTitle "playchess.com"]
[Source "ChessBase"]
[SourceQuality "1"]
[TimeControl "1200+10"]

1. Nf3 {[%emt 0:00:03]} Nf6 {[%emt 0:00:03]} 2. c4 {[%emt 0:00:01]} e6 {[%emt 0:00:03]} 3. d4 {[%emt 0:00:01]} d5 {[%emt 0:00:01]} 4. e3 {[%emt 0:00:01]} Be7 {[%emt 0:00:08]} 5. b3 {[%emt 0:00:01]} b6 {[%emt 0:00:08]} 6. Bd3 {[%emt 0:00:01]} Bb7 {[%emt 0:00:26]} 7. O-O {[%emt 0:00:02]} Nbd7 {[%emt 0:00:04]} 8. Bb2 {[%emt 0:00:00]} dxc4 {[%emt 0:00:15]} 9. bxc4 {[%emt 0:00:02]} c5 {[%emt 0:00:01]} 10. Nbd2 {[%emt 0:00:22]} O-O {[%emt 0:00:11]} 11. Qe2 {[%emt 0:00:01]} Qc7 {[%emt 0:00:17]} 12. Rac1 {[%emt 0:00:03]} Rac8 {[%emt 0:00:06]} 13. Rfd1 {[%emt 0:00:02]} Rfd8 {[%emt 0:00:04]} 14. Nf1 {[%emt 0:01:47]} Nf8 {[%emt 0:01:46]} 15. Ne5 {[%emt 0:00:43]} Ng6 {[%emt 0:00:15]} 16. f4 {[%emt 0:01:05]} cxd4 {[%emt 0:00:11]} 17. Bxg6 {[%emt 0:00:01]} hxg6 {[%emt 0:00:02]} 18. exd4 {[%emt 0:00:08]} a6 {[%emt 0:04:27]} 19. Nd2 {[%emt 0:00:32]} b5 {[%emt 0:00:54]} 20. cxb5 {[%emt 0:00:37]} Qa5 {[%emt 0:01:07]} 21. Ndc4 {[%emt 0:06:30]} Qxb5 {[%emt 0:01:21]} 22. a4 {[%emt 0:00:01]} Qe8 {[%emt 0:00:23]} 23. Nb6 {[%emt 0:00:17]} Rxc1 {[%emt 0:01:08]} 24. Rxc1 {[%emt 0:00:21]} Nd5 {[%emt 0:00:40]} 25. Nxd5 {[%emt 0:00:06]} Bxd5 {[%emt 0:00:01]} 26. Qxa6 {[%emt 0:00:37]} Ra8 {[%emt 0:00:04]} 27. Qb5 {[%emt 0:00:01]} Qxb5 {[%emt 0:00:37]} 28. axb5 {[%emt 0:00:01]} Bd6 {[%emt 0:00:32]} 29. Nd7 {[%emt 0:05:57]} Ra2 {[%emt 0:00:58]} 30. Rc2 {[%emt 0:00:25]} Ba3 {[%emt 0:00:25]} 31. Rc8+ {[%emt 0:00:02]} Kh7 {[%emt 0:00:01]} 32. Bxa3 {[%emt 0:00:02]} Rxa3 {[%emt 0:00:02]} 33. Nf8+ {[%emt 0:00:01]} Kh6 {[%emt 0:00:01]} 34. Nxe6 {[%emt 0:00:03]} g5 {[%emt 0:00:17]} 35. fxg5+ {[%emt 0:00:14]} Kh7 {[%emt 0:00:01]} 36. Nf4 {[%emt 0:00:58]} Be4 {[%emt 0:00:01]} 37. Re8 {[%emt 0:00:40]} Bf5 {[%emt 0:00:16]} 38. Re5 {[%emt 0:00:25]} g6 {[%emt 0:00:20]} 39. Nd5 {[%emt 0:01:28]} Ra1+ {[%emt 0:00:02]} 40. Kf2 {[%emt 0:00:01]} Ra2+ {[%emt 0:00:01]} 41. Re2 {[%emt 0:00:09]} 1-0

[Event "Czech Open Rapid G1 2024"]
[Site "Pardubice"]
[Date "2024.07.18"]
[Round "7.16"]
[White "Bouska, Jiri"]
[Black "Jares, Michal"]
[Result "1-0"]
[Annotator "TA"]
[ECO "B12"]
[WhiteElo "2222"]
[BlackElo "2382"]
[PlyCount "117"]
[EventDate "2024.07.16"]
[EventType "swiss"]
[EventCountry "CZE"]
[SourceTitle "playchess.com"]
[Source "ChessBase"]
[SourceQuality "1"]
[TimeControl "1200+10"]

{[%evp 22,117,8,-2,38,28,56,26,45,32,48,17,31,0,0,7,12,-12,0,-29,0,0,0,-22,0,-53,-10,0,0,-34,-30,-38,-11,-99,-102,-124,-6,-15,0,-16,-17,-31,-23,-28,31,0,0,-11,0,-10,0,-2,0,0,15,-1,9,6,28,19,29,3,2,0,18,0,0,0,0,0,0,-8,0,-154,0,0,8,-10,-8,-8,0,0,0,0,51,0,0,0,29957,29950,29973,29976,29970,29971,29996,29997,29997,29998]} 1. e4 {[%emt 0:00:04]} c6 {[%emt 0:00:02]} 2. d4 {[%emt 0:00:06]} d5 {[%emt 0:00:02]} 3. f3 {[%emt 0:00:02]} Qb6 {[%emt 0:00:02]} 4. Nc3 {[%emt 0:00:11]} dxe4 {[%emt 0:00:02]} 5. Nxe4 {[%emt 0:00:14]} Nf6 {[%emt 0:00:40]} 6. c3 {[%emt 0:00:31] B12: Caro-Kann: Advance Variation.} Nbd7 {[%emt 0:00:19]} 7. Bd3 {[%emt 0:00:47]} e6 {[%emt 0:00:06]} 8. a4 $146 {[%emt 0:00:35]} ({Predecessor:} 8. Ne2 Be7 9. O-O O-O 10. Kh1 c5 11. dxc5 Nxc5 12. Nxc5 Qxc5 13. Qc2 b6 14. Ng3 {0-1 Willow,J (2427)-Speelman,J (2492) UK Blitz op Final 2023 (4)}) 8... a5 {[%emt 0:01:10]} 9. Ne2 {[%emt 0:00:56]} Be7 {[%emt 0:00:41]} 10. Qc2 {[%emt 0:03:57]} Nd5 {[%emt 0:01:16]} 11. Bd2 {[%emt 0:00:51]} O-O {[%emt 0:01:04]} 12. Nf2 {[%emt 0:06:52]} f5 {[%emt 0:01:03]} 13. O-O {[%emt 0:01:04]} N7f6 {[%emt 0:00:42]} 14. Kh1 {[%emt 0:02:19]} Bd7 {[%emt 0:00:18]} 15. Rfe1 {[%emt 0:01:33]} Rae8 {[%emt 0:00:11]} 16. Nf4 {[%emt 0:01:18]} Bd6 {[%emt 0:00:09]} 17. N2h3 {[%emt 0:00:17]} Qc7 {[%emt 0:00:10]} 18. Qc1 {[%emt 0:00:49]} e5 {[%emt 0:00:30]} 19. Nxd5 {[%emt 0:00:21]} Nxd5 {[%emt 0:00:09]} 20. dxe5 {[%emt 0:00:06]} Rxe5 {[%emt 0:00:35]} 21. Rxe5 {[%emt 0:00:04]} Bxe5 {[%emt 0:00:01]} 22. f4 {[%emt 0:00:09]} Bd6 {[%emt 0:00:13]} 23. Qf1 {[%emt 0:00:10]} (23. c4 $11 Nb4 24. c5 Nxd3 25. Qc4+ Kh8 26. cxd6 Qxd6 27. Bxa5) 23... Kh8 {[%emt 0:00:25]} 24. Re1 {[%emt 0:00:03]} h6 {[%emt 0:00:29]} 25. Qf3 {[%emt 0:00:14]} Nf6 {[%emt 0:01:23]} 26. Nf2 {[%emt 0:00:12]} b5 {[%emt 0:00:32]} 27. axb5 {[%emt 0:00:14]} (27. Bc2 $11) 27... cxb5 $17 {[%emt 0:00:02]} 28. Bb1 {[%emt 0:00:27]} Qb6 {[%emt 0:02:27]} (28... Bc6 $17 29. Qe2 Re8 (29... Bxf4 $2 30. Bxf4 Qxf4 31. Nd3 $17)) 29. Be3 {[%emt 0:00:14]} Qc7 {[%emt 0:00:34]} 30. Nd3 {[%emt 0:00:12]} Bc6 {[%emt 0:00:03]} 31. Qf1 {[%emt 0:00:09]} Be4 {[%emt 0:00:27]} 32. Bd4 {[%emt 0:00:10]} Qf7 {[%emt 0:01:36]} (32... Kh7 $11) 33. Be5 {[%emt 0:00:16]} Be7 {[%emt 0:02:13]} 34. Nf2 {[%emt 0:00:02]} Bxb1 {[%emt 0:00:08]} 35. Rxb1 {[%emt 0:00:01]} b4 {[%emt 0:00:18]} 36. cxb4 {[%emt 0:00:03]} Bxb4 {[%emt 0:00:11]} 37. Rd1 {[%emt 0:00:11]} Qh5 {[%emt 0:00:34]} 38. Qd3 {[%emt 0:00:12]} Be7 {[%emt 0:01:07]} 39. Qc2 {[%emt 0:00:12]} Re8 {[%emt 0:01:24]} 40. h3 {[%emt 0:00:14]} Qg6 {[%emt 0:00:45]} 41. Qc6 {[%emt 0:00:18]} Kh7 {[%emt 0:00:41]} 42. Kg1 {[%emt 0:00:08]} Qf7 {[%emt 0:00:45]} 43. Qc2 {[%emt 0:00:13]} Qe6 {[%emt 0:00:22]} 44. g4 {[%emt 0:00:11]} g6 {[%emt 0:00:01]} 45. gxf5 {[%emt 0:00:06]} gxf5 {[%emt 0:00:07]} 46. Kf1 {[%emt 0:00:07]} Rg8 {[%emt 0:00:16]} 47. Qe2 $2 {[%emt 0:00:23] [#]} (47. Qc7 $11 Qa6+ 48. Rd3) 47... Rg7 $2 {[%emt 0:00:52]} (47... Qc6 $1 $17 {[%cal Rc6g2] ...Qg2+ would now be deadly.} 48. Rd4 Qg2+ 49. Ke1 Rc8) 48. Rc1 {[%emt 0:00:06]} Bb4 {[%emt 0:00:25]} 49. Rc7 {[%emt 0:00:14]} Rxc7 {[%emt 0:00:22]} 50. Bxc7 {[%emt 0:00:01]} Ne4 {[%emt 0:00:14]} (50... Qc6 {feels hotter.} 51. Be5 Kg6 52. Qd3 Be7) 51. Nxe4 {[%emt 0:00:05]} fxe4 {[%emt 0:00:11]} 52. Kg2 {[%emt 0:00:07]} Bc5 {[%emt 0:00:17]} ({Black should try} 52... Qg6+ $11 53. Kh2 h5) 53. Be5 {[%emt 0:00:11]} ({Better is} 53. Bxa5 $14 Qd5 54. Be1) 53... Qd5 {[%emt 0:00:08]} 54. Kh2 {[%emt 0:00:15]} Qd3 $2 {[%emt 0:00:08][%mdl 8192]} (54... Bb4 $11) 55. Qg2 {[%emt 0:00:06]} Bf8 {[%emt 0:00:15]} 56. f5 {[%emt 0:00:10]} Qa6 {[%emt 0:00:02]} 57. Qxe4 {[%emt 0:00:06]} Be7 {[%emt 0:00:20]} 58. f6+ {[%emt 0:00:04]} Kg8 {[%emt 0:00:02]} 59. Qg6+ {[%emt 0:00:23]} 1-0

[Event "Czech Open Rapid G1 2024"]
[Site "Pardubice"]
[Date "2024.07.18"]
[Round "7.17"]
[White "Ocelak, Jakub"]
[Black "Kusa, Jakub"]
[Result "0-1"]
[Annotator "TA"]
[ECO "D00"]
[WhiteElo "2206"]
[BlackElo "2423"]
[PlyCount "132"]
[EventDate "2024.07.16"]
[EventType "swiss"]
[EventCountry "CZE"]
[SourceTitle "playchess.com"]
[Source "ChessBase"]
[SourceQuality "1"]
[TimeControl "1200+10"]

{[%evp 9,132,0,20,15,27,20,33,32,40,44,43,38,43,45,35,41,37,33,46,23,55,22,34,12,25,0,31,-52,-64,-57,-41,-52,0,0,25,-54,35,-62,-65,-60,-62,-53,0,0,11,-22,-27,-169,-140,-278,-260,-283,-281,-345,-335,-349,-327,-359,-369,-445,-200,-187,-200,-202,-200,-181,-176,-227,-245,-231,-153,-129,-128,-139,-149,-188,-168,-148,-161,-187,-182,-152,-138,-95,-17,-60,-19,-39,-7,-7,-7,-7,-7,-7,-7,-7,-7,-7,-7,-7,-7,-7,-7,-7,-3,-8,-8,-8,-7,-7,-7,-7,-7,-8,-8,-8,-8,-8,-8,-91,-8,-96,-68,-29984,-29985]} 1. d4 {[%emt 0:00:04]} Nf6 {[%emt 0:00:02]} 2. Nc3 {[%emt 0:00:18]} d5 {[%emt 0:00:04]} 3. Bf4 {[%emt 0:00:02]} a6 {[%emt 0:00:37]} 4. e3 {[%emt 0:00:03][%cal Be2e3,Be3e4,Be4e5][%mdl 32]} Bf5 {[%emt 0:00:23]} 5. Bd3 {[%emt 0:00:01]} Bxd3 {[%emt 0:00:03]} 6. cxd3 {[%emt 0:00:02]} e6 {[%emt 0:00:03]} 7. Qb3 {[%emt 0:00:02]} b6 {[%emt 0:01:50]} 8. Nf3 {[%emt 0:00:03] White is slightly better.} Nbd7 {[%emt 0:00:08]} 9. e4 {[%emt 0:02:13]} c6 {[%emt 0:01:08]} 10. O-O {[%emt 0:01:20]} Be7 {[%emt 0:00:02]} 11. e5 {[%emt 0:00:58]} Nh5 {[%emt 0:00:02]} 12. Be3 {[%emt 0:00:03]} g5 {[%emt 0:00:26]} 13. Rac1 {[%emt 0:01:26]} Ng7 {[%emt 0:00:30]} 14. Ne2 {[%emt 0:00:27]} c5 {[%emt 0:00:24]} 15. dxc5 {[%emt 0:02:15]} bxc5 {[%emt 0:00:02]} 16. Qa4 {[%emt 0:00:40]} O-O {[%emt 0:01:13]} 17. Ng3 {[%emt 0:01:22]} h6 {[%emt 0:01:17] [#]} 18. h4 {[%emt 0:02:07]} d4 $1 $15 {[%emt 0:00:35]} (18... gxh4 $6 19. Bxh6 (19. Ne2 Nf5 $11) 19... Kh7 (19... hxg3 20. Qg4 $16) 20. Bxg7 Kxg7 21. Qg4+ Kh7 22. Qh3 $14) 19. Bd2 {[%emt 0:00:02]} g4 {[%emt 0:00:09]} 20. Nh2 {[%emt 0:00:38]} (20. Ba5 $2 Qe8 21. Nxd4 cxd4 22. Qxd4 f6 (22... Bxh4 23. Bb4 $17) 23. exf6 Bxf6 (23... Nxf6 $2 24. Rc4 $19) 24. Qxg4 Bxb2 $17 (24... Ne5 25. Qe4 $15)) 20... h5 {[%emt 0:01:55]} (20... Nxe5 $15 21. Bxh6 Rb8 (21... Bxh4 22. Bxg7 Kxg7 23. Rxc5 $11)) 21. Bh6 $11 {[%emt 0:01:11]} Nxe5 {[%emt 0:01:34]} 22. Qd1 {[%emt 0:01:04]} ({White should try} 22. Bxg7 $11 Kxg7 23. Nxh5+ Kh8 24. Qd1) 22... Bxh4 {[%emt 0:04:49]} (22... f5 $1 $15 23. Bxg7 Kxg7) 23. Bxg7 {[%emt 0:00:12]} ({Only move:} 23. Nxh5 $1 $14 Nxh5 24. Rxc5) 23... Bxg3 $15 {[%emt 0:00:01]} 24. Bxf8 {[%emt 0:00:27]} Bxh2+ {[%emt 0:00:29]} 25. Kxh2 {[%emt 0:00:02]} Qxf8 {[%emt 0:00:02]} (25... Kxf8 $15 26. Kg1 (26. Rxc5 $2 Qd6 $19) 26... Qd5) 26. Qd2 $1 $11 {[%emt 0:00:36]} Qe7 {[%emt 0:02:44]} 27. Qf4 {[%emt 0:02:06][%mdl 1024] White has compensation.} Ng6 $40 {[%emt 0:01:16][%mdl 128] Black is up to no good.} (27... Nxd3 $2 28. Qe4 $18) 28. Qe4 {[%emt 0:00:27] [#]} (28. Qh6 $1 $11 {and White stays safe.}) 28... Rd8 $1 $19 {[%emt 0:00:15]} 29. Rfe1 {[%emt 0:00:17]} (29. a3 $17) 29... Rd5 {[%emt 0:00:12]} 30. Kg1 {[%emt 0:00:13][%cal Oe4d5] Strongly threatening Qxd5!} Qg5 {[%emt 0:00:17]} 31. b4 {[%emt 0:01:19]} cxb4 {[%emt 0:00:01]} 32. Rc8+ {[%emt 0:00:03]} Kg7 {[%emt 0:00:02]} 33. Rec1 {[%emt 0:00:45]} Ne5 {[%emt 0:01:27][%cal Oe5f3] Hoping for ...Nf3+!} 34. Kh1 {[%emt 0:01:11]} h4 {[%emt 0:00:31]} (34... g3 $142 {aiming for ...Ng4.} 35. fxg3 Qxg3) 35. f4 {[%emt 0:00:15]} gxf3 {[%emt 0:00:01]} 36. gxf3 {[%emt 0:00:02] Black must now prevent Rg1.} Ng6 {[%emt 0:00:11]} 37. Rg1 {[%emt 0:00:14] Repels Qg3} Qf5 {[%emt 0:00:02]} 38. Qxf5 {[%emt 0:00:44]} (38. Rg2 {is a better defense.}) 38... Rxf5 {[%emt 0:00:01][%mdl 4096] Endgame. KRR-KRN} ({Not} 38... exf5 39. f4 $11) 39. Rc4 {[%emt 0:00:05]} a5 {[%emt 0:01:02]} ({Don't play} 39... Rxf3 40. Rxd4 a5 41. Rg5) 40. Rxd4 {[%emt 0:00:11]} Rxf3 {[%emt 0:00:01]} 41. Rxh4 {[%emt 0:00:23]} Rxd3 {[%emt 0:00:07]} 42. Rh5 {[%emt 0:00:07]} Ra3 {[%emt 0:00:03]} 43. Rg2 {[%emt 0:00:27]} Kf6 {[%emt 0:00:15]} 44. Rf2+ {[%emt 0:00:11]} Ke7 {[%emt 0:00:05]} 45. Rg5 {[%emt 0:00:22]} e5 {[%emt 0:00:16]} 46. Rgf5 {[%emt 0:00:02]} Rh3+ {[%emt 0:00:33]} ({Better is} 46... Ke6 $17 {Threatens to win with ...Nf4.} 47. Rxf7 Nf4) 47. Kg1 {[%emt 0:00:33]} Rh7 {[%emt 0:00:01]} 48. a3 {[%emt 0:00:19]} bxa3 {[%emt 0:00:07]} 49. R5f3 {[%emt 0:00:04]} Nf4 {[%emt 0:00:19]} 50. Ra2 {[%emt 0:00:01]} Ke6 {[%emt 0:00:37]} ({Resist} 50... Rh3 51. Rfxa3 Nd3 52. Rd2 $15) 51. Raxa3 {[%emt 0:00:04]} Kf5 {[%emt 0:00:01]} 52. Rxa5 {[%emt 0:00:15]} Kg4 {[%emt 0:00:00]} 53. Re3 {[%emt 0:00:25]} f6 {[%emt 0:00:07]} 54. Ra6 {[%emt 0:00:05]} Kf5 {[%emt 0:00:29]} 55. Rb3 {[%emt 0:00:09]} Rg7+ {[%emt 0:00:11]} 56. Kf1 {[%emt 0:00:02]} Rc7 {[%emt 0:00:01]} 57. Rbb6 {[%emt 0:00:07]} Rc1+ {[%emt 0:00:02]} 58. Kf2 {[%emt 0:00:02]} Nd5 {[%emt 0:00:03]} 59. Rd6 {[%emt 0:00:09]} Rc2+ {[%emt 0:00:01]} 60. Ke1 {[%emt 0:00:18]} Rc5 {[%emt 0:00:01]} 61. Rac6 {[%emt 0:00:22]} Rb5 {[%emt 0:00:01]} 62. Kf2 {[%emt 0:00:16]} e4 {[%emt 0:00:26]} 63. Rc4 {[%emt 0:00:09]} Ke5 {[%emt 0:00:03]} 64. Rd8 {[%emt 0:00:06] [#]} (64. Rdc6 $1 $11) 64... f5 {[%emt 0:00:01]} ({Black should play} 64... Kf4 $1 $17 {...Rb2+ would now be deadly.} 65. Rh8 Rb2+ 66. Kg1 f5) 65. Ke1 {[%emt 0:00:12]} (65. Rdc8 $1 $11 {keeps the balance.}) 65... Ne3 {[%emt 0:00:11]} 66. Rc5+ $2 {[%emt 0:00:15][%mdl 8192]} Rxc5 {[%emt 0:00:04] Weighted Error Value: White=0.26 (precise) /Black=0.20 (precise) .  Loses game:     	White=1     	---        Mistake:       	White=8     	Black=6      Inaccurate:     	White=3     	Black=5      OK:         	White=16    	Black=27     Best:        	White=4     	Black=4      Strong:       	White=1     	Black=1} 0-1